bitfinex-derivatives/quotes_BNBF0:USTF0_20250303
["timestamp","ask_amount","ask_price","bid_price","bid_amount"]
[1740995598314,1.74138585,599.96,599.0,0.33388981]
[1740995598708,3.33484916,600.25,599.0,0.33388981]
[1740995598912,1.74139311,599.95,599.0,0.33388981]
[1740995599112,3.33484916,600.23,599.0,0.33388981]
[1740995599313,1.74151657,599.94,599.0,0.33388981]
[1740995599717,0.3332056,600.23,599.0,0.33388981]
[1740995599718,3.33484916,600.2,599.0,0.33388981]
[1740995600015,1.74152383,599.93,599.0,0.33388981]
[1740995600215,3.33484916,600.18,599.0,0.33388981]
[1740995600412,2.66787933,600.22,599.0,0.33388981]
[1740995600610,2.66787933,600.21,599.0,0.33388981]
[1740995600810,2.66787933,600.2,599.0,0.33388981]
[1740995601014,2.66787933,600.19,599.0,0.33388981]
[1740995601216,2.66787933,600.22,599.0,0.33388981]
[1740995601417,1.74135681,600.19,599.0,0.33388981]
[1740995601718,2.66787933,600.18,599.0,0.33388981]
[1740995601918,2.66787933,600.17,599.0,0.33388981]
[1740995602121,3.33484916,600.18,599.0,0.33388981]
[1740995602420,2.66787933,600.17,599.0,0.33388981]
[1740995602621,0.66696983,600.18,599.0,0.33388981]
[1740995602622,2.66787933,600.16,599.0,0.33388981]
[1740995602817,2.66787933,600.15,599.0,0.33388981]
[1740995603018,2.66787933,600.14,599.0,0.33388981]
[1740995603216,2.66787933,600.13,599.0,0.33388981]
[1740995603418,2.66787933,600.12,599.0,0.33388981]
[1740995603620,2.66787933,600.11,599.0,0.33388981]
[1740995603819,2.66787933,600.1,599.0,0.33388981]
[1740995604020,2.66787933,600.09,599.0,0.33388981]
[1740995604319,2.66787933,600.08,599.0,0.33388981]
[1740995604515,1.74145847,600.14,599.0,0.33388981]
[1740995604819,2.66804327,600.13,599.0,0.33388981]
[1740995605120,2.66802415,600.12,599.0,0.33388981]
[1740995605314,2.66802415,600.11,599.0,0.33388981]
[1740995605517,2.66802415,600.1,599.0,0.33388981]
[1740995605715,2.66802415,600.09,599.0,0.33388981]
[1740995605917,2.66802415,600.08,599.0,0.33388981]
[1740995606114,2.66802415,600.07,599.0,0.33388981]
[1740995606317,2.66802415,600.06,599.0,0.33388981]
[1740995606514,2.66802415,600.05,599.0,0.33388981]
[1740995606820,2.66802415,600.04,599.0,0.33388981]
[1740995607018,2.66802415,600.03,599.0,0.33388981]
[1740995607216,2.66802415,600.02,599.0,0.33388981]
[1740995607415,2.66802415,600.01,599.0,0.33388981]
[1740995607614,2.66802415,600.0,599.0,0.33388981]
[1740995607815,2.66802415,599.99,599.0,0.33388981]
[1740995608015,2.66802415,599.98,599.0,0.33388981]
[1740995608215,2.66802415,600.06,599.0,0.33388981]
[1740995608418,2.66802415,600.05,599.0,0.33388981]
[1740995608614,2.66802415,600.04,599.0,0.33388981]
[1740995608818,2.66802415,600.03,599.0,0.33388981]
[1740995609018,2.66802415,600.02,599.0,0.33388981]
[1740995609218,2.66802415,600.01,599.0,0.33388981]
[1740995609419,2.66802415,600.0,599.0,0.33388981]
[1740995609620,2.66802415,599.99,599.0,0.33388981]
[1740995609821,2.66802415,599.98,599.0,0.33388981]
[1740995610017,2.66802415,600.06,599.0,0.33388981]
[1740995610217,2.66802415,600.05,599.0,0.33388981]
[1740995610422,2.66802415,600.04,599.0,0.33388981]
[1740995610616,0.66700603,600.07,599.0,0.33388981]
[1740995610617,3.33509312,600.07,599.0,0.33388981]
[1740995610818,2.6680745,600.07,599.0,0.33388981]
[1740995611217,1.74154562,600.08,599.0,0.33388981]
[1740995611918,3.33509312,600.16,599.0,0.33388981]
[1740995612223,1.74149478,600.07,599.0,0.33388981]
[1740995612423,3.33509312,600.14,599.0,0.33388981]
[1740995612622,2.6680745,600.13,599.0,0.33388981]
[1740995612818,1.74150205,600.06,599.0,0.33388981]
[1740995613023,3.33509312,600.11,599.0,0.33388981]
[1740995613221,0.3332056,600.23,599.0,0.33388981]
[1740995613222,1.74150931,600.05,599.0,0.33388981]
[1740995614519,4.40958381,600.05,599.0,0.33388981]
[1740995614719,1.74150931,600.05,599.0,0.33388981]
[1740995614921,2.66783739,600.22,599.0,0.33388981]
[1740995615124,2.66783739,600.21,599.0,0.33388981]
[1740995615325,1.74148026,600.04,599.0,0.33388981]
[1740995615525,3.33479673,600.19,599.0,0.33388981]
[1740995615726,1.74140764,600.03,599.0,0.33388981]
[1740995616025,3.33479673,600.17,599.0,0.33388981]
[1740995616224,2.66783739,600.16,599.0,0.33388981]
[1740995616425,2.66783739,600.15,599.0,0.33388981]
[1740995616729,2.66783739,600.14,599.0,0.33388981]
[1740995616925,2.66783739,600.13,599.0,0.33388981]
[1740995617118,0.3332056,600.23,599.0,0.33388981]
[1740995617316,1.74127694,600.13,599.0,0.33388981]
[1740995617519,3.33477597,600.21,599.0,0.33388981]
[1740995617719,1.74126968,600.12,599.0,0.33388981]
[1740995618026,2.66782078,600.11,599.0,0.33388981]
[1740995618220,2.66782078,600.1,599.0,0.33388981]
[1740995618419,2.66782078,600.09,599.0,0.33388981]
[1740995618619,2.66782078,600.08,599.0,0.33388981]
[1740995618824,2.66782078,600.07,599.0,0.33388981]
[1740995619021,2.66782078,600.06,599.0,0.33388981]
[1740995619227,2.66782078,600.05,599.0,0.33388981]
[1740995619427,2.66782078,600.04,599.0,0.33388981]
[1740995619629,2.66782078,600.03,599.0,0.33388981]
[1740995619827,2.66782078,600.02,599.0,0.33388981]
[1740995620027,2.66782078,600.09,599.0,0.33388981]
[1740995620328,2.66782078,600.08,599.0,0.33388981]
[1740995620527,2.66782078,600.07,599.0,0.33388981]
[1740995620730,2.66782078,600.06,599.0,0.33388981]
[1740995620928,2.66782078,600.05,599.09,1.2343549]
[1740995621128,3.33477597,600.04,599.09,1.2343549]
[1740995621329,3.33477597,600.03,599.09,1.2343549]
[1740995621522,2.66782078,600.02,599.09,1.2343549]
[1740995621722,2.66782078,600.01,599.09,1.2343549]
[1740995621925,2.66782078,600.0,599.09,1.2343549]
[1740995622122,2.66782078,599.99,599.09,1.2343549]
[1740995622325,2.66782078,599.98,599.0,0.33388981]
[1740995622526,2.6679211,599.97,599.0,0.33388981]
[1740995622825,2.6679211,599.96,599.0,0.33388981]
[1740995623021,2.66782658,600.09,599.0,0.33388981]
[1740995623223,2.66782658,600.08,599.0,0.33388981]
[1740995623426,2.66782658,600.07,599.0,0.33388981]
[1740995623626,2.66782658,600.06,599.0,0.33388981]
[1740995623829,2.66782658,600.05,599.06,1.2343549]
[1740995624026,2.66782658,600.04,599.06,1.2343549]
[1740995624228,0.66698027,600.1,599.06,1.2343549]
[1740995624229,2.66782658,600.03,599.06,1.2343549]
[1740995624431,2.66782658,600.02,599.06,1.2343549]
[1740995624625,2.66782658,600.01,599.06,1.2343549]
[1740995624824,1.74124789,600.11,599.06,1.2343549]
[1740995624825,2.66782658,600.07,599.06,1.2343549]
[1740995625024,2.66782658,600.06,599.06,1.2343549]
[1740995625226,2.66782658,600.05,599.06,1.2343549]
[1740995625426,2.66782658,600.04,599.06,1.2343549]
[1740995625636,2.66782658,600.03,599.06,1.2343549]
[1740995625837,2.66782658,600.09,599.06,1.2343549]
[1740995626033,2.66794066,600.08,599.06,1.2343549]
[1740995626232,2.66794066,600.07,599.06,1.2343549]
[1740995626435,2.66794066,600.06,599.06,1.2343549]
[1740995626634,2.66794066,600.05,599.06,1.2343549]
[1740995626834,2.66794066,600.04,599.06,1.2343549]
[1740995627039,2.66794066,600.03,599.06,1.2343549]
[1740995627240,2.66794066,600.02,599.06,1.2343549]
[1740995627442,1.74134228,600.03,599.07,1.2343549]
[1740995627739,2.66794066,600.02,599.07,1.2343549]
[1740995629134,2.66794066,600.02,599.02,1.2343549]
[1740995629336,2.66794066,600.01,599.02,1.2343549]
[1740995629535,2.66794066,600.02,599.02,1.2343549]
[1740995629835,2.66788159,600.01,599.02,1.2343549]
[1740995630040,2.66788159,600.02,599.02,1.2343549]
[1740995630241,2.66788159,600.01,599.02,1.2343549]
[1740995630442,4.4092747,600.0,599.02,1.2343549]
[1740995630634,1.74139311,600.0,599.02,1.2343549]
[1740995631236,1.74139311,600.0,599.03,1.2343549]
[1740995631843,1.74139311,600.0,599.04,0.33386752]
[1740995633041,2.66763745,599.99,599.04,0.33386752]
[1740995633241,0.66690936,600.19,599.04,0.33386752]
[1740995633441,1.74123337,599.99,599.04,0.33386752]
[1740995633637,0.66690936,600.17,599.08,1.2343549]
[1740995633843,1.74124063,599.98,599.08,1.56820012]
[1740995634036,0.66690936,600.15,599.08,1.56820012]
[1740995634250,3.33446011,600.14,599.08,1.56820012]
[1740995634442,3.33446011,600.13,599.08,1.56820012]
[1740995634642,3.33446011,600.12,599.08,1.56820012]
[1740995634944,3.33446011,600.11,599.08,1.56820012]
[1740995635145,3.33446011,600.1,599.08,0.33384522]
[1740995635340,3.33446011,600.09,599.08,0.33384522]
[1740995635544,3.33446011,600.08,599.08,0.33384522]
[1740995635743,1.74111722,600.1,599.08,0.33384522]
[1740995635744,3.33446011,600.07,599.08,0.33384522]
[1740995635940,3.33446011,600.06,599.08,0.33384522]
[1740995636144,2.66755075,600.05,599.08,0.33384522]
[1740995636445,2.66755075,600.04,599.08,0.33384522]
[1740995636638,0.66690936,600.05,599.08,0.33384522]
[1740995636639,2.66755075,600.03,599.08,0.33384522]
[1740995636838,2.66755075,600.02,599.08,0.33384522]
[1740995637040,2.66755075,600.01,599.08,0.33384522]
[1740995637345,2.66755075,600.0,599.08,0.33384522]
[1740995637546,2.66755075,599.99,599.08,0.33384522]
[1740995637746,2.66755075,599.98,599.08,0.33384522]
[1740995638046,2.66755075,599.97,599.08,0.33384522]
[1740995638250,2.66755075,599.96,599.08,0.33384522]
[1740995638548,0.66690936,600.05,599.08,0.33384522]
[1740995638749,3.33439596,600.04,599.08,0.33384522]
[1740995638948,3.33439596,600.03,599.08,0.33384522]
[1740995639250,2.6674866,600.02,599.08,0.33384522]
[1740995639451,2.6674866,600.01,599.08,0.33384522]
[1740995639644,2.6674866,600.0,599.08,0.33384522]
[1740995639848,2.6674866,599.99,599.08,0.33384522]
[1740995640049,1.74120433,600.02,599.08,0.33384522]
[1740995640245,2.66747618,600.01,599.08,0.33384522]
[1740995640443,2.66747618,600.0,599.08,0.33384522]
[1740995640644,2.66747618,599.99,599.12,1.2343549]
[1740995640848,1.74120433,600.02,599.12,1.2343549]
[1740995641949,0.66686341,600.18,599.12,1.2343549]
[1740995642151,1.74110996,600.01,599.12,1.2343549]
[1740995642449,0.3332056,600.23,599.08,0.33384522]
[1740995642450,0.66686341,600.16,599.08,0.33384522]
[1740995642652,1.74111722,600.0,599.08,0.33384522]
[1740995642853,3.33437489,600.14,599.08,0.33384522]
[1740995643145,2.66751148,600.13,599.08,0.33384522]
[1740995643350,2.66751148,600.12,599.08,0.33384522]
[1740995643552,2.66751148,600.11,599.08,0.33384522]
[1740995643849,2.66742757,600.1,599.08,0.33384522]
[1740995644053,2.66742757,600.09,599.08,0.33384522]
[1740995644250,2.66742757,600.08,599.08,0.33384522]
[1740995644550,2.66742757,600.07,599.08,0.33384522]
[1740995644751,1.74111722,600.1,599.08,0.33384522]
[1740995644752,2.66742757,600.06,599.08,0.33384522]
[1740995644943,2.66742757,600.05,599.08,0.33384522]
[1740995645148,2.66742757,600.04,599.08,0.33384522]
[1740995645348,2.66742757,600.03,599.08,0.33384522]
[1740995645551,1.74116077,600.04,599.08,0.33384522]
[1740995645753,2.66746556,600.03,599.08,0.33384522]
[1740995645953,2.66746556,600.02,599.08,0.33384522]
[1740995646154,1.74116077,600.04,599.08,0.33384522]
[1740995646354,2.66749834,600.03,599.08,0.33384522]
[1740995646550,1.74116077,600.04,599.08,0.33384522]
[1740995646751,2.66747867,600.03,599.08,0.33384522]
[1740995647049,1.74116077,600.04,599.08,0.33384522]
[1740995647250,2.66745654,600.03,599.08,0.33384522]
[1740995647452,1.74116077,600.04,599.08,0.33384522]
[1740995647658,2.66747202,600.03,599.08,0.33384522]
[1740995647853,1.74116077,600.04,599.08,0.33384522]
[1740995648049,2.66745866,600.03,599.08,0.33384522]
[1740995648253,1.74116803,600.02,599.08,0.33384522]
[1740995651053,0.3332056,600.23,599.08,0.33384522]
[1740995651453,1.74097204,600.01,599.08,0.33384522]
[1740995651654,0.3332056,600.23,599.08,0.33384522]
[1740995651854,1.7409793,600.0,599.08,0.33384522]
[1740995652154,0.3332056,600.23,599.08,0.33384522]
[1740995652350,1.74118255,599.99,599.08,0.33384522]
[1740995652749,0.3332056,600.23,599.08,0.33384522]
[1740995652948,1.74118981,599.98,599.08,0.33384522]
[1740995653148,0.3332056,600.23,599.08,0.33384522]
[1740995654051,0.3332056,600.23,599.14,1.2343549]
[1740995654354,1.74085592,600.22,599.15,0.33380622]
[1740995655248,2.66731056,600.21,599.15,0.33380622]
[1740995655449,2.66731056,600.2,599.15,0.33380622]
[1740995655655,2.66731056,600.19,599.15,0.33380622]
[1740995655856,2.66731056,600.18,599.15,0.33380622]
[1740995656052,2.66731056,600.17,599.15,0.33380622]
[1740995656256,2.66731056,600.16,599.15,0.33380622]
[1740995656451,2.66731056,600.15,599.15,0.33380622]
[1740995656651,2.66731056,600.14,599.15,0.33380622]
[1740995656854,2.66731056,600.13,599.15,0.33380622]
[1740995657056,2.66731056,600.12,599.15,0.33380622]
[1740995657252,2.66731056,600.11,599.15,0.33380622]
[1740995657451,2.66731056,600.2,599.15,0.33380622]
[1740995657658,2.66731056,600.19,599.15,0.33380622]
[1740995657854,2.66731056,600.18,599.15,0.33380622]
[1740995658059,2.66709906,600.17,599.15,0.33380622]
[1740995658354,2.66709906,600.16,599.15,0.33380622]
[1740995658557,2.66709906,600.15,599.15,0.33380622]
[1740995658861,2.66709906,600.2,599.15,0.33380622]
[1740995659060,2.66709906,600.19,599.15,0.33380622]
[1740995659254,2.66709906,600.18,599.15,0.33380622]
[1740995659457,2.66709906,600.21,599.25,1.2343549]
[1740995659660,2.66709906,600.2,599.25,1.2343549]
[1740995659860,2.66709906,600.19,599.25,1.2343549]
[1740995660162,2.66709906,600.18,599.25,1.2343549]
[1740995660358,2.66699394,600.17,599.25,1.2343549]
[1740995660564,2.66699394,600.16,599.25,1.2343549]
[1740995660863,2.66699394,600.15,599.25,1.2343549]
[1740995661057,2.66699394,600.14,599.25,1.2343549]
[1740995661257,1.74085592,600.22,599.25,1.2343549]
[1740995661258,2.66699394,600.13,599.25,1.2343549]
[1740995661463,2.66699394,600.12,599.25,1.2343549]
[1740995661660,2.66699394,600.11,599.25,1.2343549]
[1740995661964,2.66699394,600.1,599.25,1.2343549]
[1740995662163,2.66699394,600.09,599.25,1.2343549]
[1740995662362,1.74085592,600.22,599.19,1.2343549]
[1740995662563,3.33410597,600.21,599.19,1.2343549]
[1740995662864,3.33410597,600.2,599.19,1.2343549]
[1740995663063,3.33410597,600.19,599.19,1.2343549]
[1740995663266,3.33410597,600.18,599.19,1.2343549]
[1740995663563,1.66050438,600.2,599.19,1.2343549]
[1740995663564,3.33410597,600.17,599.19,1.2343549]
[1740995663761,2.66728478,600.16,599.19,1.2343549]
[1740995663959,2.66728478,600.15,599.19,1.2343549]
[1740995664158,2.66728478,600.14,599.19,1.2343549]
[1740995664361,2.66728478,600.13,599.19,1.2343549]
[1740995664566,2.66728478,600.12,599.19,1.2343549]
[1740995664763,2.66728478,600.11,599.19,1.2343549]
[1740995664958,2.66728478,600.1,599.19,1.2343549]
[1740995665156,2.66728478,600.09,599.19,1.2343549]
[1740995665358,2.66728478,600.08,599.19,1.2343549]
[1740995665559,2.66728478,600.07,599.19,1.2343549]
[1740995665759,2.66728478,600.17,599.19,1.2343549]
[1740995665962,2.66728478,600.16,599.19,1.2343549]
[1740995666158,2.66728478,600.15,599.19,1.2343549]
[1740995666361,2.66728478,600.14,599.19,1.2343549]
[1740995666564,2.66728478,600.13,599.19,1.2343549]
[1740995666863,2.66728478,600.12,599.19,1.2343549]
[1740995667058,2.66728478,600.11,599.19,1.2343549]
[1740995667261,2.66728478,600.1,599.19,1.2343549]
[1740995667462,2.66728478,600.09,599.15,0.33380622]
[1740995667666,2.66728478,600.08,599.15,0.33380622]
[1740995667863,2.66728478,600.07,599.15,0.33380622]
[1740995668068,2.66728478,600.14,599.15,0.33380622]
[1740995668365,2.66728478,600.13,599.15,0.33380622]
[1740995668564,2.66728478,600.12,599.15,0.33380622]
[1740995668867,2.66728478,600.11,599.15,0.33380622]
[1740995669164,2.66728478,600.1,599.15,0.33380622]
[1740995669362,2.66728478,600.09,599.15,0.33380622]
[1740995669662,1.74153836,600.1,599.15,0.33380622]
[1740995672167,3.33404925,600.2,599.15,0.33380622]
[1740995672168,2.6672394,600.19,599.15,0.33380622]
[1740995672368,1.74119707,600.09,599.15,0.33380622]
[1740995672561,3.33398115,600.36,599.15,0.33380622]
[1740995672767,2.6672394,600.35,599.15,0.33380622]
[1740995673069,2.6672394,600.34,599.15,0.33380622]
[1740995673264,2.6672394,600.33,599.15,0.33380622]
[1740995673568,2.6672394,600.32,599.15,0.33380622]
[1740995673763,2.6672394,600.31,599.15,0.33380622]
[1740995673962,2.6672394,600.47,599.15,0.33380622]
[1740995674165,2.6672394,600.46,599.15,0.33380622]
[1740995674371,2.6672394,600.45,599.15,0.33380622]
[1740995674669,2.6672394,600.44,599.15,0.33380622]
[1740995674963,2.66675487,600.43,599.15,0.33380622]
[1740995675163,2.66675487,600.42,599.15,0.33380622]
[1740995675366,2.66675487,600.41,599.15,0.33380622]
[1740995675572,2.66675487,600.4,599.15,0.33380622]
[1740995675868,2.66675487,600.39,599.15,0.33380622]
[1740995676067,2.66675487,600.38,599.15,0.33380622]
[1740995676269,2.66672702,600.37,599.15,0.33380622]
[1740995676470,2.66672702,600.36,599.15,0.33380622]
[1740995676767,2.66672702,600.35,599.15,0.33380622]
[1740995676969,2.6667408,600.34,599.15,0.33380622]
[1740995677170,2.6667408,600.41,599.15,0.33380622]
[1740995677365,2.6667408,600.4,599.15,0.33380622]
[1740995677569,2.6667408,600.39,599.15,0.33380622]
[1740995677767,2.6667408,600.38,599.15,0.33380622]
[1740995677965,3.333426,600.37,599.15,0.33380622]
[1740995678164,3.333426,600.36,599.15,0.33380622]
[1740995678370,3.333426,600.35,599.15,0.33380622]
[1740995678570,2.6667408,600.34,599.15,0.33380622]
[1740995678773,2.6667408,600.33,599.15,0.33380622]
[1740995678971,2.6667408,600.32,599.15,0.33380622]
[1740995679168,2.66645088,600.31,599.15,0.33380622]
[1740995679371,2.66645088,600.3,599.15,0.33380622]
[1740995679572,2.66645088,600.29,599.15,0.33380622]
[1740995679772,2.66645088,600.28,599.15,0.33380622]
[1740995679969,2.66645088,600.27,599.15,0.33380622]
[1740995680172,2.66645088,600.26,599.15,0.33380622]
[1740995680374,1.74058019,600.43,599.15,0.33380622]
[1740995680375,2.66645088,600.25,599.15,0.33380622]
[1740995680574,2.66645088,600.24,599.15,0.33380622]
[1740995680874,1.74058019,600.43,599.15,0.33380622]
[1740995680875,2.66645088,600.23,599.15,0.33380622]
[1740995681075,2.66645088,600.22,599.15,0.33380622]
[1740995681271,2.66645088,600.21,599.15,0.33380622]
[1740995681469,0.66661272,600.42,599.15,0.33380622]
[1740995681774,1.74058019,600.43,599.15,0.33380622]
[1740995681775,3.33321131,600.41,599.15,0.33380622]
[1740995681974,3.33321131,600.4,599.15,0.33380622]
[1740995682174,3.33321131,600.39,599.15,0.33380622]
[1740995682373,3.33321131,600.38,599.15,0.33380622]
[1740995682670,3.33321131,600.37,599.15,0.33380622]
[1740995682870,3.33321131,600.36,599.15,0.33380622]
[1740995683070,3.33321131,600.35,599.15,0.33380622]
[1740995683269,3.33321131,600.34,599.15,0.33380622]
[1740995683469,3.33321131,600.33,599.15,0.33380622]
[1740995683667,2.66659859,600.32,599.15,0.33380622]
[1740995683970,2.66659859,600.31,599.15,0.33380622]
[1740995684174,4.66661574,601.38,599.15,0.33380622]
[1740995684175,2.66659859,600.3,599.15,0.33380622]
[1740995684370,2.66659859,600.29,599.15,0.33380622]
[1740995684675,2.66659859,600.28,599.15,0.33380622]
[1740995684877,2.66659859,600.27,599.15,0.33380622]
[1740995685070,2.66659859,600.26,599.15,0.33380622]
[1740995685277,2.66649899,600.29,599.15,0.33380622]
[1740995685472,1.74057294,600.3,599.15,0.33380622]
[1740995687980,1.74057294,600.3,599.34,1.2343549]
[1740995689376,1.74057294,600.3,599.15,0.33380622]
[1740995689377,1.74057294,600.3,599.27,1.2343549]
[1740995689579,1.74057294,600.3,599.28,0.33373381]
[1740995690079,2.66627978,600.34,599.28,0.33373381]
[1740995690375,1.74053667,600.29,599.28,0.33373381]
[1740995693081,2.66627978,600.33,599.28,0.33373381]
[1740995693279,3.33288875,600.52,599.28,0.33373381]
[1740995693475,1.74048589,600.28,599.28,0.33373381]
[1740995693678,1.65990039,600.58,599.28,1.56808871]
[1740995693679,3.33288875,600.5,599.28,1.56808871]
[1740995693878,1.74049314,600.27,599.28,1.56808871]
[1740995694081,3.33288875,600.48,599.28,1.56808871]
[1740995694282,2.66627978,600.47,599.28,1.56808871]
[1740995694481,1.74056568,600.26,599.28,1.56808871]
[1740995694679,2.66627978,600.25,599.28,1.56808871]
[1740995694880,1.74062372,600.25,599.28,1.56808871]
[1740995695981,3.33331475,600.33,599.28,1.56808871]
[1740995696176,2.6666518,600.32,599.28,0.33373381]
[1740995696382,2.6666518,600.31,599.28,0.33373381]
[1740995696578,2.6666518,600.3,599.28,0.33373381]
[1740995696779,2.6666518,600.29,599.28,0.33373381]
[1740995697082,2.6666518,600.28,599.28,0.33373381]
[1740995697283,2.6666518,600.27,599.28,0.33373381]
[1740995697485,2.6666518,600.26,599.28,0.33373381]
[1740995697678,2.6666518,600.25,599.28,0.33373381]
[1740995697878,2.6666518,600.24,599.28,0.33373381]
[1740995698080,2.6666518,600.23,599.28,0.33373381]
[1740995698278,2.6666518,600.3,599.28,0.33373381]
[1740995698484,2.6666518,600.29,599.28,0.33373381]
[1740995698787,2.6666518,600.28,599.28,0.33373381]
[1740995698982,2.6666518,600.27,599.28,0.33373381]
[1740995699183,2.6666518,600.26,599.28,0.33373381]
[1740995699382,2.6666518,600.25,599.28,0.33373381]
[1740995699580,2.6666518,600.24,599.28,0.33373381]
[1740995699781,2.6666518,600.23,599.28,0.33373381]
[1740995699986,2.6666518,600.22,599.28,0.33373381]
[1740995700180,2.6666518,600.29,599.28,0.33373381]
[1740995700386,2.6666518,600.28,599.28,0.33373381]
[1740995700584,2.6666518,600.27,599.28,0.33373381]
[1740995700786,2.6666518,600.3,599.28,0.33373381]
[1740995700988,2.6666518,600.29,599.28,0.33373381]
[1740995701185,2.6666518,600.28,599.28,0.33373381]
[1740995701387,2.6666518,600.27,599.28,0.33373381]
[1740995701583,4.65831812,600.26,599.28,0.33373381]
[1740995701790,3.66794506,600.25,599.28,0.33373381]
[1740995701992,2.66780045,600.24,599.28,0.33373381]
[1740995702293,2.66780045,600.23,599.28,0.33373381]
[1740995702489,2.66780045,600.22,599.28,0.33373381]
[1740995702795,2.66780045,600.21,599.28,0.33373381]
[1740995702994,2.66780045,600.2,599.28,0.33373381]
[1740995703194,2.66780045,600.19,599.28,0.33373381]
[1740995703391,2.66780045,600.18,599.28,0.33373381]
[1740995703594,2.66780045,600.17,599.28,0.33373381]
[1740995703795,2.66780045,600.16,599.28,0.33373381]
[1740995703990,2.66780045,600.15,599.28,0.33373381]
[1740995704190,2.66780045,600.14,599.28,0.33373381]
[1740995704397,2.66780045,600.13,599.01,1.2343549]
[1740995704598,2.66780045,600.12,599.01,1.2343549]
[1740995704799,2.66780045,600.11,599.01,1.2343549]
[1740995704994,4.32726325,600.1,598.73,1.2343549]
[1740995705192,4.99421336,600.09,598.74,0.3340348]
[1740995705394,1.6594628,600.07,598.74,0.3340348]
[1740995705595,1.74110996,600.24,598.74,0.3340348]
[1740995707899,1.48856122,602.07,598.74,0.3340348]
[1740995707900,3.33423851,600.43,598.74,0.3340348]
[1740995708098,2.66739081,600.42,598.74,0.3340348]
[1740995708302,3.33423851,600.41,598.74,0.3340348]
[1740995708498,3.33423851,600.4,598.74,0.3340348]
[1740995708704,2.66739081,600.39,598.74,0.3340348]
[1740995708902,3.00051316,600.38,598.74,0.3340348]
[1740995709203,3.00051871,600.37,598.74,0.3340348]
[1740995709399,3.00052426,600.36,598.74,0.3340348]
[1740995709600,3.00052981,600.35,599.19,1.2343549]
[1740995709804,3.00053536,600.34,599.19,1.2343549]
[1740995710005,2.66739081,600.33,599.19,1.2343549]
[1740995710306,0.33314455,600.34,599.19,1.2343549]
[1740995710307,2.66739081,600.32,599.19,1.2343549]
[1740995710499,2.66739081,600.31,599.19,1.2343549]
[1740995710700,2.66739081,600.3,599.19,1.2343549]
[1740995710904,2.66739081,600.29,599.19,1.2343549]
[1740995711099,2.66739081,600.28,599.04,1.2343549]
[1740995711300,2.66739081,600.27,599.04,1.2343549]
[1740995711502,2.66739081,600.26,599.05,0.33386194]
[1740995711701,2.66739081,600.25,599.05,0.33386194]
[1740995711902,2.66739081,600.24,599.05,0.33386194]
[1740995712104,2.66739081,600.23,599.05,0.33386194]
[1740995712302,2.66739081,600.22,599.05,0.33386194]
[1740995712507,2.66739081,600.26,599.05,0.33386194]
[1740995712702,2.66739081,600.25,599.05,0.33386194]
[1740995712907,2.66739081,600.26,599.05,0.33386194]
[1740995713306,2.66739081,600.27,599.05,0.33386194]
[1740995713506,2.66739081,600.26,599.05,0.33386194]
[1740995713802,2.66739081,600.25,599.05,0.33386194]
[1740995714007,0.33314455,600.34,599.05,0.33386194]
[1740995714203,1.74101559,600.25,599.05,0.33386194]
[1740995714409,3.33366772,600.32,599.05,0.33386194]
[1740995714705,1.74102285,600.24,599.05,0.33386194]
[1740995714903,2.66693418,600.23,599.05,0.33386194]
[1740995715105,2.66693418,600.29,599.05,0.33386194]
[1740995715307,0.33314455,600.34,599.05,0.33386194]
[1740995716305,1.74088495,600.33,599.05,0.33386194]
[1740995716811,2.07403505,600.33,599.05,0.33386194]
[1740995717111,0.3331501,600.33,599.05,0.33386194]
[1740995717309,1.7409793,600.32,599.05,0.33386194]
[1740995718011,1.7409793,600.32,599.09,1.2343549]
[1740995718212,1.7409793,600.32,599.1,0.33383408]
[1740995719914,0.3331501,600.33,599.1,0.33383408]
[1740995720319,1.74084866,600.31,599.12,1.2343549]
[1740995721217,1.74084866,600.31,599.13,0.33381736]
[1740995722818,1.74084866,600.31,599.29,1.2343549]
[1740995723022,1.48856122,601.46,599.29,1.2343549]
[1740995723023,2.6654397,600.84,599.29,1.2343549]
[1740995723216,1.74022478,600.3,599.29,1.2343549]
[1740995723620,2.6654397,601.05,599.29,1.2343549]
[1740995723821,1.74015951,600.29,599.29,1.2343549]
[1740995724022,2.6654397,601.02,599.29,1.2343549]
[1740995724222,1.74016677,600.28,599.29,1.2343549]
[1740995724618,3.33160421,600.99,599.29,1.2343549]
[1740995724922,1.74017402,600.28,599.29,1.2343549]
[1740995725123,3.33160421,600.97,599.29,1.2343549]
[1740995725322,2.66528337,600.96,599.29,1.2343549]
[1740995725623,2.66528337,600.95,599.13,0.33381736]
[1740995725820,2.66528337,600.94,599.13,0.33381736]
[1740995726015,2.66528337,600.93,599.13,0.33381736]
[1740995726217,2.66528337,600.92,599.13,0.33381736]
[1740995726418,2.66528337,600.91,599.13,0.33381736]
[1740995726621,2.66528337,600.9,599.13,0.33381736]
[1740995726821,2.66528337,600.89,599.13,0.33381736]
[1740995727021,2.66528337,600.88,599.13,0.33381736]
[1740995727218,2.66528337,600.87,599.13,0.33381736]
[1740995727425,0.66632084,600.97,599.13,0.33381736]
[1740995727426,2.66528337,600.86,599.13,0.33381736]
[1740995727723,2.66528337,600.85,599.13,0.33381736]
[1740995727919,2.66528337,600.84,599.13,0.33381736]
[1740995728119,2.66528337,600.96,599.13,0.33381736]